{"text_format":"3","workbook":"xlsx","n_sheets":2,"sheets":["Začetek","Donosnost stranke"],"not_rendered":{"charts":1},"read":"whole","date_system":"1900"}

{"sheet":"Začetek","index":0,"n_rows":7,"n_cols":2,"rows_kept":7}
[null,"O TEJ PREDLOGI"]
[null,"S to analiza donosnosti stranke spremljajte dejavnost stranke, stroški prodaje in drugi stroški."]
[null,"V tabele vnesite informacije, kot so ime podjetja, datum in podrobnosti."]
[null,"Vrednosti v celicah, ki vsebujejo formule in tabeli »Metrika povzetka«, so samodejno izračunane in grafikon je posodobljen."]
[null,"Opomba:  "]
[null,"Dodatna navodila so na voljo v stolpcu A na delovnem listu DONOSNOST STRANKE. To besedilo je bilo skrito namenoma. Če želite besedilo premakniti, izberite stolpec A, nato izberite še IZBRIŠI. Če želite besedilo razkriti, izberite stolpec A, nato zamenjajte barvo pisave."]
[null,"Če želite izvedeti več o tabelah na tem delovnem list, znotraj tabele pritisnite SHIFT in nato F10, izberite možnost TABELA, nato pa izberite NADOMESTNO BESEDILO."]

{"sheet":"Donosnost stranke","index":1,"n_rows":37,"n_cols":6,"rows_kept":37,"merged":[[36,1,36,5]]}
["Na tem delovnem listu ustvarite analiza donosnosti stranke. Koristna navodila za uporabo tega delovnega lista najdete v celicah v tem stolpcu. Puščica dol za začetek dela."]
["Ime podjetja vnesite v celico na desni.","Ime podjetja"]
["Naslov tega delovnega lista je v celici na desni strani.","Analiza donosnosti stranke"]
["Datum vnesite v celico na desni.","Datum"]
["Namig je v celici na desni.","Sive celice bodo samodejno izračunane. V te celice vam ni treba vnašati ničesar."]
["Podrobnosti vnesite v tabelo »Dejavnost stranke«, ki se začne v celici na desni. Naslednje navodilo je v celici A12.","Dejavnost stranke:","Ime segmenta 1","Ime segmenta 2","Ime segmenta 3","Skupaj"]
[null,"Število aktivnih strank – začetek obdobja",5,8,8,{"$f":"SUM(C7:E7)","v":21}]
[null,"Število dodanih strank",2,4,4,{"$f":"SUM(C8:E8)","v":10}]
[null,"Število izgubljenih strank/strank z odpovedano pogodbo",{"v":-1,"d":"-1 "},{"v":-2,"d":"-2 "},{"v":-2,"d":"-2 "},{"$f":"SUM(C9:E9)","v":{"v":-5,"d":"-5 "}}]
[null,"Število aktivnih strank – konec obdobja",{"$f":"SUBTOTAL(109,Dejavnost_stranke[Ime segmenta 1])","v":6},{"$f":"SUBTOTAL(109,Dejavnost_stranke[Ime segmenta 2])","v":10},{"$f":"SUBTOTAL(109,Dejavnost_stranke[Ime segmenta 3])","v":10},{"$f":"SUBTOTAL(109,Dejavnost_stranke[Skupaj])","v":26}]
[]
["Podrobnosti vnesite v tabelo »Analiza donosnosti«, ki se začne v celici na desni. Naslednje navodilo je v celici A16.","Analiza donosnosti:","Ime segmenta 1","Ime segmenta 2","Ime segmenta 3","Skupaj"]
[null,"Prihodek na segment",{"v":1500000,"d":"1,500,000.00 €"},{"v":1800000,"d":"1,800,000.00 €"},{"v":2500000,"d":"2,500,000.00 €"},{"$f":"SUM(Analiza_donosnosti[[#This Row],[Ime segmenta 1]:[Ime segmenta 3]])","v":{"v":5800000,"d":"5,800,000.00 €"}}]
[null,"Ponderiranje",{"$f":"+C13/$F$13","v":{"v":0.25862068965517243,"d":"26%"}},{"$f":"+D13/$F$13","v":{"v":0.3103448275862069,"d":"31%"}},{"$f":"+E13/$F$13","v":{"v":0.43103448275862066,"d":"43%"}},{"$f":"SUM(Analiza_donosnosti[[#This Row],[Ime segmenta 1]:[Ime segmenta 3]])","v":{"v":1,"d":"100%"}}]
[]
["Podrobnosti vnesite v tabelo »Stroški prodaje«, ki se začne v celici na desni. Naslednje navodilo je v celici A23.","Stroški prodaje:","Ime segmenta 1","Ime segmenta 2","Ime segmenta 3","Skupaj"]
[null,"Tekoči stroški storitve in podpore",{"v":1000000,"d":"1,000,000.00 €"},{"v":1400000,"d":"1,400,000.00 €"},{"v":1400000,"d":"1,400,000.00 €"},{"$f":"SUM(C17:E17)","v":{"v":3800000,"d":"3,800,000.00 €"}}]
[null,"Drugi neposredni stroški stranke",{"v":200000,"d":"200,000.00 €"},{"v":100000,"d":"100,000.00 €"},{"v":100000,"d":"100,000.00 €"},{"$f":"SUM(C18:E18)","v":{"v":400000,"d":"400,000.00 €"}}]
[null,"Skupni stroški prodaje",{"$f":"SUM(C17:C18)","v":{"v":1200000,"d":"1,200,000.00 €"}},{"$f":"SUM(D17:D18)","v":{"v":1500000,"d":"1,500,000.00 €"}},{"$f":"SUM(E17:E18)","v":{"v":1500000,"d":"1,500,000.00 €"}},{"$f":"SUM(F17:F18)","v":{"v":4200000,"d":"4,200,000.00 €"}}]
[null,"Bruto marža",{"$f":"+C13-C19","v":{"v":300000,"d":"300,000.00 €"}},{"$f":"+D13-D19","v":{"v":300000,"d":"300,000.00 €"}},{"$f":"+E13-E19","v":{"v":1000000,"d":"1,000,000.00 €"}},{"$f":"+F13-F19","v":{"v":1600000,"d":"1,600,000.00 €"}}]
[null,"Ponderiranje",{"$f":"MAX(0, MIN(1,C20/$F$20))","v":{"v":0.1875,"d":"19%"}},{"$f":"MAX(0, MIN(1,D20/$F$20))","v":{"v":0.1875,"d":"19%"}},{"$f":"MAX(0, MIN(1,E20/$F$20))","v":{"v":0.625,"d":"63%"}},{"$f":"SUM(C21:E21)","v":{"v":1,"d":"100%"}}]
[]
["Podrobnosti vnesite v tabelo »Drugi stroški«, ki se začne v celici na desni. Naslednje navodilo je v celici A31.","Drugi stroški:","Ime segmenta 1","Ime segmenta 2","Ime segmenta 3","Skupaj"]
[null,"Pridobivanje strank",{"v":105000,"d":"105,000.00 €"},{"v":120000,"d":"120,000.00 €"},{"v":235000,"d":"235,000.00 €"},{"$f":"SUM(Drugi_stroški[[#This Row],[Ime segmenta 1]:[Ime segmenta 3]])","v":{"v":460000,"d":"460,000.00 €"}}]
[null,"Trženje za stranke",{"v":150000,"d":"150,000.00 €"},{"v":125000,"d":"125,000.00 €"},{"v":275000,"d":"275,000.00 €"},{"$f":"SUM(C25:E25)","v":{"v":550000,"d":"550,000.00 €"}}]
[null,"Prenehanje veljavnosti pogodbe stranke",{"v":80000,"d":"80,000.00 €"},{"v":190000,"d":"190,000.00 €"},{"v":140000,"d":"140,000.00 €"},{"$f":"SUM(C26:E26)","v":{"v":410000,"d":"410,000.00 €"}}]
[null,"Skupni drugi stroški stranke",{"$f":"SUM(C24:C26)","v":{"v":335000,"d":"335,000.00 €"}},{"$f":"SUM(D24:D26)","v":{"v":435000,"d":"435,000.00 €"}},{"$f":"SUM(E24:E26)","v":{"v":650000,"d":"650,000.00 €"}},{"$f":"SUM(F24:F26)","v":{"v":1420000,"d":"1,420,000.00 €"}}]
[null,"Dobiček stranke po segmentu",{"$f":"+C20-C27","v":{"v":-35000,"d":"-35,000.00 €"}},{"$f":"+D20-D27","v":{"v":-135000,"d":"-135,000.00 €"}},{"$f":"+E20-E27","v":{"v":350000,"d":"350,000.00 €"}},{"$f":"SUM(C28:E28)","v":{"v":180000,"d":"180,000.00 €"}}]
[null,"Ponderiranje",{"$f":"MAX(0,MIN(1, C28/$F$28))","v":{"v":0,"d":"0%"}},{"$f":"MAX(0,MIN(1, D28/$F$28))","v":{"v":0,"d":"0%"}},{"$f":"MAX(0,MIN(1, E28/$F$28))","v":{"v":1,"d":"100%"}},{"$f":"SUM(C29:E29)","v":{"v":1,"d":"100%"}}]
[]
["Tabela »Metrika povzetka«, ki se začne v celici na desni, je samodejno posodobljena. Naslednje navodilo je v celici A37.","Metrika povzetka:","Ime segmenta 1","Ime segmenta 2","Ime segmenta 3","Trend"]
[null,"Povprečni stroški na pridobljeno stranko",{"$f":"+C24/C8","v":{"v":52500,"d":"52,500.00 €"}},{"$f":"+D24/D8","v":{"v":30000,"d":"30,000.00 €"}},{"$f":"+E24/E8","v":{"v":58750,"d":"58,750.00 €"}}]
[null,"Povprečni stroški na stranko z odpovedano pogodbo",{"$f":"-C26/C9","v":{"v":80000,"d":"80,000.00 €"}},{"$f":"-D26/D9","v":{"v":95000,"d":"95,000.00 €"}},{"$f":"-E26/E9","v":{"v":70000,"d":"70,000.00 €"}}]
[null,"Povprečni trženjski stroški na aktivno stranko",{"$f":"+C26/Dejavnost_stranke[[#Totals],[Ime segmenta 1]]","v":{"v":13333.333333333334,"d":"13,333.33 €"}},{"$f":"+D25/Dejavnost_stranke[[#Totals],[Ime segmenta 2]]","v":{"v":12500,"d":"12,500.00 €"}},{"$f":"+E25/Dejavnost_stranke[[#Totals],[Ime segmenta 3]]","v":{"v":27500,"d":"27,500.00 €"}}]
[null,"Povprečni dobiček (izguba) na stranko",{"$f":"+C29/Dejavnost_stranke[[#Totals],[Ime segmenta 1]]","v":{"v":0,"d":"0.00 €"}},{"$f":"+D28/Dejavnost_stranke[[#Totals],[Ime segmenta 2]]","v":{"v":-13500,"d":"-13,500.00 €"}},{"$f":"+E28/Dejavnost_stranke[[#Totals],[Ime segmenta 3]]","v":{"v":35000,"d":"35,000.00 €"}}]
[]
["Gručni stolpčni grafikon s prikazom metrika povzetka po segmentih stranke je v celici na desni.","Gručni stolpčni grafikon s prikazom metrika povzetka po segmentih stranke je v tej celici."]